bitfinex/quotes_BTCUSD_20250723
["timestamp","ask_amount","ask_price","bid_price","bid_amount"]
[1753305939539,1.66333619,117790.0,117780.0,0.00014717]
[1753305939982,1.25953916,117790.0,117780.0,0.00014717]
[1753305940205,1.66333619,117790.0,117780.0,0.00014717]
[1753305940652,1.66673919,117790.0,117780.0,0.00014717]
[1753305940874,1.71774919,117790.0,117780.0,0.00014717]
[1753305941105,1.66673919,117790.0,117780.0,0.00014717]
[1753305941822,1.71774919,117790.0,117780.0,0.00014717]
[1753305942103,1.31395216,117790.0,117780.0,0.00014717]
[1753305942321,1.71774919,117790.0,117780.0,0.00014717]
[1753305942788,1.71574919,117790.0,117780.0,0.00014717]
[1753305943257,1.71874919,117790.0,117780.0,0.00014717]
[1753305943475,1.71874919,117790.0,117780.0,1e-08]
[1753305943706,6.76674919,117790.0,117780.0,1e-08]
[1753305944153,6.76874919,117790.0,117780.0,1e-08]
[1753305945686,1.71874919,117790.0,117780.0,1e-08]
[1753305945908,6.71773919,117790.0,117780.0,1e-08]
[1753305946364,6.31394216,117790.0,117780.0,1e-08]
[1753305946588,6.71773919,117790.0,117780.0,1e-08]
[1753305947971,6.17462216,117790.0,117780.0,1e-08]
[1753305948195,6.71757919,117790.0,117780.0,1e-08]
[1753305949502,6.81858919,117790.0,117780.0,1e-08]
[1753305950623,6.41479216,117790.0,117780.0,1e-08]
[1753305951083,6.81858919,117790.0,117780.0,1e-08]
[1753305951730,6.81658919,117790.0,117780.0,1e-08]
[1753305952080,6.82058919,117790.0,117780.0,1e-08]
[1753305952281,6.82058919,117790.0,117770.0,0.0004]
[1753305952282,0.57513757,117780.0,117770.0,1e-08]
[1753305952518,6.2577919,117780.0,117770.0,1e-08]
[1753305952710,1.42045956,117770.0,117760.0,1e-08]
[1753305953035,1.64931686,117770.0,117760.0,0.00049359]
[1753305953250,1.73869686,117770.0,117760.0,0.00049359]
[1753305953467,0.98579282,117750.0,117740.0,0.06604113]
[1753305953703,1.41554012,117750.0,117740.0,0.06812464]
[1753305954160,1.41869012,117750.0,117740.0,0.06812464]
[1753305954369,1.42402035,117750.0,117740.0,0.06812464]
[1753305954778,1.44955135,117750.0,117740.0,0.06812464]
[1753305955208,1.45270135,117750.0,117740.0,0.00208351]
[1753305955418,1.44955135,117750.0,117740.0,0.00408351]
[1753305955629,1.44955135,117750.0,117740.0,0.00732351]
[1753305956252,1.44955135,117750.0,117740.0,0.02332351]
[1753305956942,0.19580796,117740.0,117730.0,0.47548642]
[1753305957166,0.41944526,117740.0,117730.0,0.47763443]
[1753305957386,0.41944526,117740.0,117730.0,0.0738374]
[1753305957603,0.41944526,117740.0,117730.0,0.47763443]
[1753305958188,0.44506876,117740.0,117730.0,0.47763443]
[1753305958415,0.44606876,117740.0,117730.0,0.48363443]
[1753305958836,0.44606876,117740.0,117730.0,0.48463443]
[1753305960485,0.44606876,117740.0,117730.0,0.48787443]
[1753305960711,0.14016,117740.0,117730.0,0.69172968]
[1753305960963,0.48016,117740.0,117730.0,0.69172968]
[1753305961190,0.76893848,117740.0,117730.0,0.65775466]
[1753305961409,0.62977848,117740.0,117730.0,0.48787443]
[1753305961641,0.93627809,117740.0,117730.0,0.48463443]
[1753305962072,0.93627809,117740.0,117730.0,0.0808374]
[1753305962350,0.91044541,117740.0,117730.0,0.0808374]
[1753305964789,0.91044541,117740.0,117730.0,0.48463443]
[1753305966088,0.91040541,117740.0,117730.0,0.66300867]
[1753305966519,0.91040541,117740.0,117730.0,0.48463443]
[1753305966752,0.91040541,117740.0,117730.0,0.0808374]
[1753305966971,0.91040541,117740.0,117730.0,0.48463443]
[1753305967189,0.91040541,117740.0,117730.0,0.0808374]
[1753305967438,0.91040541,117740.0,117730.0,0.48463443]
[1753305967892,0.91040541,117740.0,117730.0,0.0808374]
[1753305968731,0.91040541,117740.0,117730.0,0.0653374]
[1753305968942,0.94729541,117740.0,117730.0,0.0473374]
[1753305969177,0.68582311,117730.0,117720.0,0.00046]
[1753305969410,1.35010744,117730.0,117720.0,0.00050936]
[1753305969888,1.35010744,117730.0,117720.0,1e-08]
[1753305969889,6.06393795,117730.0,117720.0,1e-08]
[1753305970151,6.51773498,117730.0,117720.0,1e-08]
[1753305970401,5.99631041,117730.0,117720.0,1e-08]
[1753305970625,6.45010744,117730.0,117720.0,1e-08]
[1753305970848,6.40010744,117730.0,117720.0,1e-08]
[1753305971336,6.04631041,117730.0,117720.0,1e-08]
[1753305971569,6.45010744,117730.0,117720.0,1e-08]
[1753305971810,6.04631041,117730.0,117720.0,1e-08]
[1753305972478,6.15175041,117730.0,117720.0,1e-08]
[1753305973147,6.55954744,117730.0,117720.0,0.00100001]
[1753305973609,6.60954744,117730.0,117720.0,0.00100001]
[1753305973869,6.20575041,117730.0,117720.0,0.00100001]
[1753305974093,6.60954744,117730.0,117720.0,0.00100001]
[1753305974342,6.63588807,117730.0,117720.0,0.00100001]
[1753305974775,6.60954744,117730.0,117720.0,0.00100001]
[1753305975016,6.23209104,117730.0,117720.0,0.00100001]
[1753305975451,6.63588807,117730.0,117720.0,0.00100001]
[1753305975667,6.23209104,117730.0,117720.0,0.00100001]
[1753305975892,6.78588807,117730.0,117720.0,0.00100001]
[1753305977016,6.38209104,117730.0,117720.0,0.00100001]
[1753305977458,6.78588807,117730.0,117720.0,0.00100001]
[1753305978217,6.38209104,117730.0,117720.0,0.00100001]
[1753305978443,0.99434851,117710.0,117700.0,0.00160069]
[1753305978662,1.25494581,117710.0,117700.0,0.00160069]
[1753305978860,1.25791581,117710.0,117700.0,0.00160069]
[1753305979514,1.31168367,117710.0,117700.0,0.00160069]
[1753305979737,1.31268367,117710.0,117700.0,0.00160069]
[1753305979951,1.31468367,117710.0,117700.0,0.00160069]
[1753305980214,1.28645881,117710.0,117700.0,0.00160069]
[1753305981087,1.31472577,117710.0,117700.0,0.00160069]
[1753305981308,1.28645881,117710.0,117700.0,0.00160069]
[1753305981769,6.54061881,117710.0,117700.0,0.00160069]
[1753305982021,6.56890559,117710.0,117700.0,0.00160069]
[1753305982240,6.97270262,117710.0,117700.0,0.00160069]
[1753305982687,6.61690559,117710.0,117700.0,0.00160069]
[1753305982909,5.61656858,117700.0,117690.0,0.0004]
[1753305983151,6.30803856,117700.0,117690.0,0.0004]
[1753305983814,6.30803856,117700.0,117650.0,0.31338582]
[1753305983815,0.51292642,117660.0,117650.0,0.31338582]
[1753305984063,1.09286008,117660.0,117650.0,0.00207935]
[1753305984289,1.09286008,117660.0,117650.0,0.01847935]
[1753305984510,1.11841008,117660.0,117650.0,0.01847935]
[1753305984948,1.11841008,117660.0,117650.0,0.42227638]
[1753305985181,1.08879654,117660.0,117650.0,0.43757638]
[1753305985452,1.08029762,117660.0,117650.0,0.03377935]
[1753305985677,1.08029762,117660.0,117650.0,0.44081638]
[1753305985903,1.08029762,117660.0,117650.0,0.44181638]
[1753305986139,1.08029762,117660.0,117650.0,0.00307935]
[1753305986361,1.08029762,117660.0,117650.0,0.40787638]
[1753305986809,1.08029762,117660.0,117650.0,0.02007935]
[1753305987035,1.08029762,117660.0,117650.0,0.42387638]
[1753305987504,0.76747632,117660.0,117650.0,0.63771061]
[1753305987740,0.88572632,117660.0,117650.0,0.63771061]
[1753305987993,0.3782773,117660.0,117650.0,0.63771061]
[1753305988459,0.24568632,117660.0,117650.0,0.63771061]
[1753305988680,0.0844773,117660.0,117650.0,0.69683815]
[1753305988907,0.14376,117670.0,117660.0,0.22647761]
[1753305988908,0.48376,117670.0,117660.0,0.22647761]
[1753305989143,0.2344773,117670.0,117660.0,0.63554464]
[1753305989395,0.0844773,117680.0,117670.0,0.195461]
[1753305989645,0.22976114,117680.0,117670.0,0.233231]
[1753305989934,0.72681427,117680.0,117670.0,0.63702803]
[1753305990212,0.7183173,117680.0,117670.0,1.04082506]
[1753305990472,0.5683173,117680.0,117670.0,0.63702803]
[1753305990689,0.5683173,117680.0,117670.0,1.04082506]
[1753305990922,0.5683173,117680.0,117670.0,0.63702803]
[1753305991345,0.0844773,117680.0,117670.0,0.63702803]
[1753305991569,0.325542,117700.0,117690.0,0.19542778]
[1753305991805,0.38713282,117700.0,117690.0,0.63669481]
[1753305992026,0.2286373,117700.0,117690.0,0.63669481]
[1753305992258,0.24608632,117700.0,117690.0,0.63669481]
[1753305992481,0.5686373,117700.0,117690.0,0.63669481]
[1753305992710,0.59412452,117700.0,117690.0,0.62819842]
[1753305992941,0.77300191,117700.0,117690.0,0.61970182]
[1753305993229,0.77400191,117700.0,117690.0,0.63669525]
[1753305993450,0.77400191,117700.0,117690.0,0.64519178]
[1753305993668,0.77400191,117700.0,117690.0,0.21590486]
[1753305993894,0.77400191,117700.0,117690.0,0.63669539]
[1753305994133,0.77400191,117700.0,117690.0,0.64519199]
[1753305994357,0.78249765,117700.0,117690.0,0.63669539]
[1753305994575,0.78249765,117700.0,117690.0,0.62819871]
[1753305994853,0.78249765,117700.0,117690.0,0.63669546]
[1753305995076,0.78249765,117700.0,117690.0,0.64519206]
[1753305995309,0.79099382,117700.0,117690.0,0.65368852]
[1753305995531,0.79099382,117700.0,117690.0,0.64519206]
[1753305995757,0.77400212,117700.0,117690.0,0.63669546]
[1753305995984,0.77400212,117700.0,117690.0,0.65368845]
[1753305996212,0.59558184,117700.0,117690.0,0.65368795]
[1753305996436,0.61257324,117700.0,117690.0,0.65368795]
[1753305997103,0.59558184,117700.0,117690.0,0.65368795]
[1753305997341,0.14508,117700.0,117690.0,0.65368795]
[1753305997774,0.54508,117700.0,117690.0,0.65368795]
[1753305998674,0.54508,117700.0,117690.0,0.65468795]
[1753305999082,0.54408,117700.0,117690.0,0.65468795]
[1753305999316,0.54388,117700.0,117690.0,0.65468795]
[1753305999692,0.54388,117700.0,117690.0,0.65568795]
[1753306000185,0.54388,117700.0,117690.0,0.74016525]
[1753306000414,0.54388,117700.0,117690.0,0.65568795]
[1753306000647,0.54388,117700.0,117690.0,0.25189092]
[1753306000901,0.54388,117700.0,117690.0,0.65568795]
[1753306002902,0.65384481,117700.0,117690.0,0.63869517]
[1753306003134,0.84971346,117700.0,117690.0,0.593465]
[1753306003376,0.84971346,117700.0,117690.0,0.40782703]
[1753306003377,0.58781198,117700.0,117690.0,0.40782703]
[1753306003592,0.91931595,117700.0,117690.0,0.00403]
[1753306004021,0.91931595,117700.0,117690.0,0.40579703]
[1753306004687,0.91931595,117700.0,117690.0,0.002]
[1753306004899,0.91931595,117700.0,117690.0,0.40579703]
[1753306005323,0.91931595,117700.0,117690.0,0.002]
[1753306005539,0.72569615,117680.0,117670.0,1e-08]
[1753306005748,0.65486443,117680.0,117670.0,4.936e-05]
[1753306005976,0.81526345,117680.0,117670.0,4.936e-05]
[1753306006188,1.56710048,117680.0,117670.0,1e-08]
[1753306006401,6.61710048,117680.0,117670.0,1e-08]
[1753306006829,6.66710048,117680.0,117670.0,1e-08]
[1753306007303,6.65888178,117680.0,117670.0,1e-08]
[1753306007749,6.66488178,117680.0,117670.0,1e-08]
[1753306007970,6.29485745,117680.0,117670.0,1e-08]
[1753306008197,6.29485745,117680.0,117670.0,0.00100001]
[1753306008420,6.29885745,117680.0,117670.0,1e-08]
[1753306009299,6.69443578,117680.0,117670.0,1e-08]
[1753306011276,6.55051578,117680.0,117670.0,1e-08]
[1753306011492,6.69447578,117680.0,117670.0,1e-08]
[1753306012162,6.84447578,117680.0,117670.0,1e-08]
[1753306013508,1.02574383,117650.0,117640.0,0.20704]
[1753306013741,1.65197946,117650.0,117640.0,0.20753311]
[1753306013970,1.51088946,117650.0,117640.0,0.20753311]
[1753306014099,1.68044646,117650.0,117640.0,0.20753311]
[1753306014343,1.53644646,117650.0,117640.0,0.20753311]
[1753306014541,1.68040646,117650.0,117640.0,0.20753311]
[1753306014746,1.28482813,117650.0,117640.0,0.20753311]
[1753306014953,1.68040646,117650.0,117640.0,0.20753311]
[1753306015604,1.75679545,117650.0,117640.0,0.20853311]
[1753306015806,1.70978545,117650.0,117640.0,0.20853311]
[1753306016194,1.56582545,117650.0,117640.0,0.20853311]
[1753306016417,1.71042545,117650.0,117640.0,0.20853311]
[1753306016640,1.31684712,117650.0,117640.0,0.20853311]
[1753306016855,1.56782545,117650.0,117640.0,0.20853311]
[1753306017084,1.31668712,117650.0,117640.0,0.20853311]
[1753306017754,1.71226545,117650.0,117640.0,0.20853311]
[1753306018455,1.31668712,117650.0,117640.0,0.20853311]
[1753306018887,1.71226545,117650.0,117640.0,0.20853311]
[1753306019342,1.31468712,117650.0,117640.0,0.20853311]
[1753306019603,6.76026545,117650.0,117640.0,0.20753311]
[1753306020070,6.76626545,117650.0,117640.0,0.20853311]
[1753306020546,6.55853791,117640.0,117630.0,0.00626529]
[1753306020789,1.42256985,117620.0,117610.0,0.0004]
[1753306021007,1.25988882,117620.0,117610.0,0.0004]
[1753306021233,1.68572025,117620.0,117610.0,0.0004]
[1753306021461,1.14386192,117620.0,117610.0,0.0004]
[1753306021683,1.27149569,117620.0,117610.0,0.0004]
[1753306022131,1.08758569,117620.0,117610.0,0.18959854]
[1753306022359,1.23616569,117620.0,117610.0,0.00254]
[1753306022619,1.24011569,117620.0,117610.0,0.0014]
[1753306022845,1.26667569,117620.0,117610.0,0.0014]
[1753306023306,1.26667569,117620.0,117610.0,0.00338]
[1753306023307,1.09769667,117620.0,117610.0,0.00338]
[1753306023549,1.24417667,117620.0,117610.0,0.00338]
[1753306023770,1.09769667,117620.0,117610.0,0.19894107]
[1753306023995,1.24429667,117620.0,117610.0,0.19043876]
[1753306024246,1.26174569,117620.0,117610.0,0.19043876]
[1753306024477,1.2532441,117620.0,117610.0,0.19043876]
[1753306024710,1.24474229,117620.0,117610.0,0.18193616]
[1753306024931,1.24478229,117620.0,117610.0,0.18193616]
[1753306025172,1.24478229,117620.0,117610.0,0.01188267]
[1753306025829,1.24478229,117620.0,117610.0,0.00338]
[1753306026057,1.22733327,117620.0,117610.0,0.00338]
[1753306026280,1.24478229,117620.0,117610.0,0.18193623]
[1753306026497,1.24478229,117620.0,117610.0,0.19043883]
[1753306026740,1.24478229,117620.0,117610.0,0.00338]
[1753306026986,6.33079229,117620.0,117610.0,0.0014]
[1753306027203,1.28079229,117620.0,117610.0,0.0014]
[1753306027422,1.27217542,117620.0,117610.0,0.0014]
[1753306028137,1.12217542,117620.0,117610.0,0.0014]
[1753306029043,1.10667542,117620.0,117610.0,0.0014]
[1753306029274,0.63860964,117620.0,117610.0,0.17343356]
[1753306029508,0.4120373,117620.0,117610.0,0.64930239]
[1753306029732,0.56694791,117620.0,117610.0,0.62475157]
[1753306029966,0.41694791,117620.0,117610.0,0.62475157]
[1753306030185,0.4084373,117620.0,117610.0,0.62475157]
[1753306030379,0.2974,117620.0,117610.0,0.62475157]
[1753306030638,0.2974,117620.0,117610.0,0.70922887]
[1753306030858,0.151,117620.0,117610.0,0.62475157]
[1753306031075,0.29652,117620.0,117610.0,0.62475157]
[1753306031532,0.29752,117620.0,117610.0,0.62575157]
[1753306032695,0.29752,117620.0,117610.0,0.23017324]
[1753306032910,0.29752,117620.0,117610.0,0.62575157]
[1753306036058,0.14752,117620.0,117610.0,0.62575157]
[1753306036267,0.001,117620.0,117610.0,0.71022887]
[1753306036482,1e-08,117620.0,117610.0,0.71022887]
[1753306036687,1e-08,117620.0,117610.0,0.79470617]
[1753306036905,1e-08,117620.0,117610.0,0.94070617]
[1753306037345,0.49049273,117650.0,117640.0,0.19551085]
[1753306037570,0.14665273,117650.0,117640.0,0.62631918]
[1753306037799,0.14665273,117650.0,117640.0,0.70765244]
[1753306038752,0.00049273,117650.0,117640.0,0.70765244]
[1753306039258,0.40049273,117650.0,117640.0,0.70865244]
[1753306039505,0.40149273,117650.0,117640.0,0.70865244]
[1753306039721,0.40149273,117650.0,117640.0,0.62731918]
[1753306040827,0.40049273,117650.0,117640.0,0.62631918]
[1753306041485,0.40049273,117650.0,117640.0,0.62831918]
[1753306041486,0.00149273,117650.0,117640.0,0.62831918]
[1753306042236,0.00149273,117650.0,117640.0,0.71279648]
[1753306042452,0.00149273,117650.0,117640.0,1.10837481]
[1753306042681,0.00149273,117650.0,117640.0,1.2948521]
[1753306043403,0.4,117660.0,117650.0,1.01815089]
[1753306043649,0.4,117660.0,117650.0,1.25251819]
[1753306044593,0.4,117660.0,117650.0,0.77234256]
[1753306044852,0.4,117660.0,117650.0,0.62590256]
[1753306045088,0.7355392,117660.0,117650.0,0.00198]
[1753306045326,0.17949532,117650.0,117640.0,0.00614747]
[1753306045561,0.18799496,117650.0,117640.0,0.00812747]
[1753306045773,0.18699496,117650.0,117640.0,0.19113854]
[1753306045995,0.18911496,117650.0,117640.0,0.20813905]
[1753306046215,0.20611314,117650.0,117640.0,0.19963883]
[1753306046441,0.19761401,117650.0,117640.0,0.20813905]
[1753306046677,0.32851027,117640.0,117630.0,0.17001189]
[1753306046918,0.17852581,117630.0,117620.0,0.17001448]
[1753306047145,0.18702675,117630.0,117620.0,0.18074902]
[1753306047377,0.01700166,117630.0,117620.0,0.18925068]
[1753306047605,0.20563246,117630.0,117620.0,0.58482901]
[1753306047823,0.01700166,117630.0,117620.0,0.59333045]
[1753306048038,0.03560759,117630.0,117620.0,0.59333045]
[1753306048259,0.04410882,117630.0,117620.0,0.59333045]
[1753306048496,0.03560759,117630.0,117620.0,0.59333045]
[1753306048917,0.03560759,117630.0,117620.0,0.59533045]
[1753306049137,0.02810651,117630.0,117620.0,0.20075212]
[1753306049359,0.00260384,117630.0,117620.0,0.59633045]
[1753306049581,0.01110442,117630.0,117620.0,0.59633045]
[1753306049810,0.41110442,117630.0,117620.0,0.59633045]
[1753306050038,0.401,117630.0,117620.0,0.59633045]
[1753306050269,0.401,117630.0,117620.0,0.70812728]
[1753306050498,0.001,117630.0,117620.0,0.79260458]
[1753306050775,0.001,117630.0,117620.0,0.84260458]
[1753306051007,0.15,117680.0,117670.0,0.195461]
[1753306051247,0.3805573,117680.0,117670.0,0.59103933]
[1753306051501,0.29608,117680.0,117670.0,0.59103933]
[1753306051732,0.30457704,117680.0,117670.0,0.25389457]
[1753306051952,0.63608,117680.0,117670.0,0.195461]
[1753306052188,0.29608,117680.0,117670.0,0.59203933]
[1753306052425,0.30108,117680.0,117670.0,0.59203933]
[1753306052674,0.63708,117680.0,117670.0,0.59103933]
[1753306052906,0.64008,117680.0,117670.0,0.59203933]
[1753306053154,0.64008,117680.0,117670.0,0.196461]
[1753306053346,0.64008,117680.0,117670.0,0.59203933]
[1753306053634,0.64008,117680.0,117670.0,0.60773933]
[1753306053853,0.64008,117680.0,117670.0,0.59203933]
[1753306054088,0.64008,117680.0,117670.0,0.65843489]
[1753306054316,0.64008,117680.0,117670.0,0.60773933]
[1753306054567,0.64008,117680.0,117670.0,0.59377933]
[1753306054790,0.64008,117680.0,117670.0,0.198201]
[1753306054982,0.49008,117680.0,117670.0,0.59377933]
[1753306055455,0.15008,117680.0,117670.0,0.59377933]
[1753306056125,0.15008,117680.0,117670.0,0.27671113]
[1753306056357,0.15008,117680.0,117670.0,0.67228946]
[1753306056582,0.15008,117680.0,117670.0,0.59377933]
[1753306057485,0.15008,117680.0,117670.0,0.60877933]
[1753306057697,0.15008,117680.0,117670.0,0.60986933]
[1753306058358,0.15008,117680.0,117670.0,0.62566933]
[1753306058359,0.004,117680.0,117670.0,0.62566933]
[1753306058578,0.004,117680.0,117670.0,0.3145683]
[1753306058796,0.404,117680.0,117670.0,0.71014663]
[1753306059226,0.403,117680.0,117670.0,0.71014663]
[1753306059671,0.4,117680.0,117670.0,0.70914663]
[1753306059904,0.4,117680.0,117670.0,0.71014663]
[1753306060343,0.14512,117690.0,117680.0,0.19544439]
[1753306060562,0.14512,117690.0,117680.0,0.59276272]
[1753306060810,0.14512,117690.0,117680.0,0.60926272]
[1753306061056,0.54512,117690.0,117680.0,0.60926272]
[1753306061483,0.54612,117690.0,117680.0,0.60926272]
[1753306062494,0.54612,117690.0,117680.0,0.21368439]
[1753306062736,0.54612,117690.0,117680.0,0.59276272]
[1753306062984,0.75526381,117690.0,117680.0,0.18868728]
[1753306063234,0.64247168,117690.0,117680.0,0.19544439]
[1753306063514,0.63397486,117690.0,117680.0,0.19544439]
[1753306063734,0.81240972,117690.0,117680.0,0.19544439]
[1753306063981,0.20394157,117680.0,117670.0,0.17846512]
[1753306064214,0.00211,117680.0,117670.0,0.18696317]
[1753306064453,0.19377054,117680.0,117670.0,0.18696317]
[1753306064669,0.20066424,117680.0,117670.0,0.18696317]
[1753306064922,0.00849805,117670.0,117660.0,0.19546476]
[1753306065148,0.34785995,117680.0,117670.0,0.17846512]
[1753306065381,0.31689444,117680.0,117670.0,0.18796317]
[1753306065606,0.49534432,117680.0,117670.0,0.196461]
[1753306065841,0.53524237,117680.0,117670.0,0.18696331]
[1753306066098,0.53524237,117680.0,117670.0,0.19546129]
[1753306066382,0.52674475,117680.0,117670.0,0.21245702]
[1753306066590,0.52674475,117680.0,117670.0,0.18696331]
[1753306066804,0.51824742,117680.0,117670.0,0.1784649]
[1753306067031,0.51824742,117680.0,117670.0,0.18696324]
[1753306067462,0.51824742,117680.0,117670.0,0.19546129]
[1753306067684,0.52674504,117680.0,117670.0,0.19546129]
[1753306067871,0.33199429,117680.0,117670.0,0.21245702]
[1753306068115,0.31789415,117680.0,117670.0,0.60977535]
[1753306068567,0.32639155,117680.0,117670.0,0.60127752]
[1753306068794,0.30939697,117680.0,117670.0,0.60977535]
[1753306069047,0.32639133,117680.0,117670.0,0.60977535]
[1753306069707,0.29568,117680.0,117670.0,0.60977535]
[1753306069994,0.14548,117680.0,117670.0,0.71995228]
[1753306070871,0.14448,117680.0,117670.0,0.71995228]
[1753306071087,0.14448,117680.0,117670.0,0.71986228]
[1753306071308,0.14448,117680.0,117670.0,0.64187535]
[1753306071529,0.14448,117680.0,117670.0,0.21445702]
[1753306071732,0.14448,117680.0,117670.0,0.61177535]
[1753306072801,0.14448,117680.0,117670.0,0.62797535]
[1753306074132,0.5442,117690.0,117680.0,0.21164439]
[1753306074358,0.5442,117690.0,117680.0,0.59276272]
[1753306075245,0.5442,117690.0,117680.0,0.67425424]
[1753306075641,0.5442,117690.0,117680.0,0.19718439]
[1753306075860,0.55042,117690.0,117680.0,0.19544439]
[1753306076067,0.55891632,117690.0,117680.0,0.19544439]
[1753306076347,0.55042,117690.0,117680.0,0.19544439]
[1753306076565,0.55891632,117690.0,117680.0,0.19718439]
[1753306077436,0.55042,117690.0,117680.0,0.19718439]
[1753306077662,0.56741263,117690.0,117680.0,0.19718439]
[1753306078001,0.55042,117690.0,117680.0,0.19718439]
[1753306078212,0.55042,117690.0,117680.0,0.59276272]
[1753306078429,0.5452,117690.0,117680.0,0.62027181]
[1753306078864,0.5452,117690.0,117680.0,0.57492714]
[1753306079090,0.5452,117690.0,117680.0,0.59192158]
[1753306079743,0.56741263,117690.0,117680.0,0.59192158]
[1753306080216,0.56042,117690.0,117680.0,0.59192158]
[1753306080903,0.56042,117690.0,117680.0,0.19634325]
[1753306081127,0.60961263,117690.0,117680.0,0.59018158]
[1753306081356,0.60111624,117690.0,117680.0,0.59018158]
[1753306081581,0.20111624,117690.0,117680.0,0.19460325]
[1753306081814,0.04069711,117680.0,117670.0,0.1784649]
[1753306082059,0.04069805,117670.0,117660.0,0.18709116]
[1753306082273,0.1863279,117670.0,117660.0,0.18709116]
[1753306082485,0.58943776,117670.0,117660.0,0.18709116]
[1753306082738,0.19793559,117670.0,117660.0,0.18709116]
[1753306082958,0.62832753,117670.0,117660.0,0.17860575]
[1753306083171,0.62832753,117670.0,117660.0,0.18710467]
[1753306083388,0.44986191,117670.0,117660.0,0.20410192]
[1753306083613,0.64532327,117670.0,117660.0,0.19560337]
[1753306083863,0.6198297,117670.0,117660.0,0.19560351]
[1753306084071,0.60283317,117670.0,117660.0,0.00212539]
[1753306084298,0.94283317,117670.0,117660.0,0.00212539]
[1753306084511,0.94283317,117670.0,117660.0,0.00012539]
[1753306084940,0.94283317,117670.0,117660.0,0.00112539]
[1753306085160,0.94283317,117670.0,117660.0,0.00012539]
[1753306085605,0.94583317,117670.0,117660.0,0.00112539]
[1753306085815,0.94583317,117670.0,117660.0,0.00212539]
[1753306086479,0.94583317,117670.0,117660.0,0.00112539]
[1753306087620,0.94683317,117670.0,117660.0,0.00112539]
[1753306088267,0.94683317,117670.0,117660.0,0.17960561]
[1753306088487,0.94683317,117670.0,117660.0,0.18810445]
[1753306088705,0.94683317,117670.0,117660.0,0.17960575]
[1753306088921,0.94683317,117670.0,117660.0,0.18810474]
[1753306089362,0.63334632,117670.0,117660.0,0.19660366]
[1753306089586,0.61922415,117670.0,117660.0,0.60917931]
[1753306089814,0.97128753,117670.0,117660.0,0.17960575]
[1753306090010,0.97128753,117670.0,117660.0,0.18810474]
[1753306090274,0.97128753,117670.0,117660.0,0.18810459]
[1753306090519,0.97128753,117670.0,117660.0,0.20510214]
[1753306090762,0.78432401,117670.0,117660.0,0.21360069]
[1753306090979,0.79282184,117670.0,117660.0,0.21360069]
[1753306091410,0.78432401,117670.0,117660.0,0.21360069]
[1753306091879,0.79282191,117670.0,117660.0,0.21360069]
[1753306092112,0.79282184,117670.0,117660.0,0.21360069]
[1753306092330,0.63214632,117670.0,117660.0,0.21360069]
[1753306092596,0.77550632,117670.0,117660.0,0.21360069]
[1753306092864,0.78400401,117670.0,117660.0,0.21360069]
[1753306093361,0.77550632,117670.0,117660.0,0.21360069]
[1753306093639,1.03009717,117670.0,117660.0,0.00112539]
[1753306094307,1.11246963,117670.0,117660.0,0.00112539]
[1753306094543,0.04870036,117640.0,117630.0,0.19552761]
[1753306094742,0.47801123,117640.0,117630.0,0.17852581]
[1753306094999,0.30102668,117640.0,117630.0,0.18702689]
[1753306095221,0.47953739,117640.0,117630.0,0.18702689]
[1753306095503,0.47953739,117640.0,117630.0,0.19552783]
[1753306095711,0.30952719,117640.0,117630.0,0.21252942]
[1753306095938,0.47953739,117640.0,117630.0,0.2040287]
[1753306096164,0.30952719,117640.0,117630.0,0.21252942]
[1753306096444,0.3754514,117630.0,117620.0,0.17001448]
[1753306096729,0.5475467,117630.0,117620.0,0.18701831]
[1753306096974,0.5506767,117630.0,117620.0,0.19551997]
[1753306097242,0.54217591,117630.0,117620.0,0.00850195]
[1753306097516,0.6181522,117630.0,117620.0,0.19554459]
[1753306097722,0.61829988,117630.0,117620.0,0.18704293]
[1753306097945,0.61829988,117630.0,117620.0,0.19554474]
[1753306098229,0.45677624,117630.0,117620.0,0.21254799]
[1753306098491,0.45677624,117630.0,117620.0,0.21354799]
[1753306098744,0.3143167,117630.0,117620.0,0.61411581]
[1753306098989,0.29682768,117630.0,117620.0,0.61411581]
[1753306099917,0.00114768,117630.0,117620.0,0.63262581]
[1753306100141,0.00114768,117630.0,117620.0,0.64912581]
[1753306100594,0.40114768,117630.0,117620.0,0.64912581]
[1753306102388,1e-08,117630.0,117620.0,0.73360311]
[1753306102610,1e-08,117630.0,117620.0,1.15808041]
[1753306102824,1e-08,117630.0,117620.0,1.20808041]
[1753306103255,1e-08,117630.0,117620.0,1.2570804]
[1753306103479,1e-08,117630.0,117620.0,1.65265873]
[1753306103703,1e-08,117630.0,117620.0,1.2580804]
[1753306104139,1e-08,117630.0,117620.0,1.2570804]
[1753306104587,1e-08,117630.0,117620.0,1.2610804]
[1753306105010,0.01000001,117630.0,117620.0,1.2610804]
[1753306105455,0.01000001,117630.0,117620.0,1.21108041]
[1753306105681,0.01000001,117630.0,117620.0,1.20708041]
[1753306106123,0.01000001,117630.0,117620.0,1.26804311]
[1753306106339,0.01000001,117630.0,117620.0,1.07660311]
[1753306106552,0.01000001,117630.0,117620.0,1.22188311]
[1753306107004,0.01000001,117630.0,117620.0,1.21788311]
[1753306107225,0.01,117630.0,117620.0,1.21688311]
[1753306107643,0.01,117630.0,117620.0,1.18408311]
[1753306107855,0.01,117630.0,117620.0,1.26696174]
[1753306108547,0.01,117630.0,117620.0,1.19948311]
[1753306109203,0.011,117630.0,117620.0,1.20648311]
[1753306111741,0.011,117630.0,117620.0,1.22248311]
[1753306112409,1e-08,117630.0,117620.0,1.22248311]
[1753306112836,1e-08,117630.0,117620.0,1.27248311]
[1753306113053,1e-08,117630.0,117620.0,1.35696041]
[1753306115803,1e-08,117630.0,117620.0,1.38309161]
[1753306118151,1e-08,117630.0,117620.0,1.25292961]
[1753306118383,1e-08,117630.0,117620.0,1.26131149]
[1753306118586,1e-08,117630.0,117620.0,1.25910149]
[1753306118797,1e-08,117630.0,117620.0,1.24370149]
[1753306119436,1e-08,117630.0,117620.0,1.26181149]
[1753306119666,1e-08,117630.0,117620.0,0.54070689]
[1753306119880,1e-08,117630.0,117620.0,0.68458689]
[1753306120739,0.00510001,117630.0,117620.0,0.68458689]
[1753306120991,0.03610001,117630.0,117620.0,0.68259689]
[1753306121628,0.03610001,117630.0,117620.0,0.65646569]
[1753306125727,0.03610001,117630.0,117620.0,0.26088736]
[1753306125946,0.03610001,117630.0,117620.0,0.65646569]
[1753306127956,0.03610001,117630.0,117620.0,0.65856569]
[1753306128609,0.23162748,117630.0,117620.0,0.1000044]
[1753306128833,0.04460073,117630.0,117620.0,0.18754105]
[1753306129045,0.07215446,117630.0,117620.0,0.20454459]
[1753306129259,0.08065554,117630.0,117620.0,0.20454459]
[1753306129468,0.07215446,117630.0,117620.0,0.21304633]
[1753306129691,0.05515286,117630.0,117620.0,0.6101261]